Cogmind - Beta 15 @@@ ROGUE MODE // 2025.09.04 @ 08:39:24 Player: Rock Tank Result: Destroyed by 4H-TH7(R) with Subdweller Beam Cannon Performance ------------- Evolutions (0) 0 Regions Visited (2) 400 Robots Destroyed (30) 150 Value Destroyed (642) 642 Prototype IDs (11) 220 Alien Tech Used (0) 0 Bonus (-22) -22 TOTAL SCORE: 1390 Bonus ------- Friendly Fire -22 Cogmind --------- Core Integrity 0/250 Matter 154/300 Energy 70/100 System Corruption 0% Temperature Cool (9) Movement Treading (480) Ox4 Location -10/Subcaves Parts ------- > --- POWER (1) -------- (None) > --- PROPULSION (2) --- Light Treads > --- UTILITY (2) ------ Huge Storage Unit > --- WEAPON (2) ------- Battle Rifle Subdweller Shrapnel Launcher > --- INVENTORY (25) --- Light Nuclear Core Light Angular Momentum Engine Meta Core Improved Treads Improved Treads Improved Treads Improved Treads Improved Treads Improved Treads Improved Treads Improved Treads Compact Wheel Improved Heat Sink High-capacity Storage Unit Small Battery (100) High-capacity Matter Pod (200) Sensor Array Transport Network Coupler EM Shotgun Autogun Light Cannon Mining Laser Shrapnel Trap Piercing Trap Peak State ------------ > --- POWER ------------ Ion Engine > --- PROPULSION ------- Light Treads Compact Wheel > --- UTILITY ---------- Huge Storage Unit Phase Shifter > --- WEAPON ----------- Light Cannon Bore Cannon > --- INVENTORY -------- Light Nuclear Core Light Angular Momentum Engine Meta Core Light Treads Improved Treads Improved Treads Improved Treads Improved Treads Improved Treads Improved Treads Improved Treads Improved Treads Improved Heat Sink High-capacity Storage Unit Small Battery High-capacity Matter Pod Sensor Array Transport Network Coupler EM Shotgun Autogun Battle Rifle Subdweller Shrapnel Launcher Mining Laser Shrapnel Trap Piercing Trap [Rating: 20] Favorites ----------- Power Ion Engine Engine Ion Engine Propulsion Light Treads Treads Light Treads Leg Aluminum Leg Wheel Compact Wheel Utility Huge Storage Unit Device Tractor Beam Storage Huge Storage Unit Protection Light Armor Plating Weapon Autogun Energy Gun EM Pulse Gun Energy Cannon Beam Cannon Ballistic Gun Autogun Ballistic Cannon Light Cannon Launcher Subdweller Shrapnel Launcher Special Weapon Mining Laser Build | -11 -10 -10 ------- Run | Yrd Mat Sub Slots Evolved . | . . . Power . | . . . Propulsion . | . . . Utility . | . . . Weapon . | . . . Parts Attached 33 | 6 17 10 Power 2 | 1 1 . Engine 2 | 1 1 . Core . | . . . Reactor . | . . . Propulsion 9 | 2 5 2 Treads 5 | 2 1 2 Leg 1 | . 1 . Wheel 3 | . 3 . Hover . | . . . Flight . | . . . Utility 8 | 1 4 3 Device 3 | . 1 2 Storage 4 | 1 2 1 Processor . | . . . Hackware . | . . . Protection 1 | . 1 . Artifact . | . . . Weapon 14 | 2 7 5 Energy Gun 6 | 2 2 2 Energy Cannon 1 | . 1 . Ballistic Gun 3 | . 2 1 Ballistic Cannon 2 | . 1 1 Launcher 1 | . . 1 Special Weapon 1 | . 1 . Impact Weapon . | . . . Slashing Weapon . | . . . Piercing Weapon . | . . . Special Melee Weapon . | . . . Unidentified Prototypes . | . . . Parts Lost 9 | . 1 8 Power 1 | . . 1 Propulsion 2 | . . 2 Utility 2 | . . 2 Weapon 4 | . 1 3 Highest Loss Streak 4 | . 1 4 To Critical Strikes . | . . . Average Backups 20 | 3 20 23 Power 2 | . 2 2 Propulsion 7 | 2 7 9 Utility 5 | . 5 5 Weapon 5 | 1 4 6 Tool/Special . | . . . Unused Backups 28 | . 12 16 Power 5 | . 2 3 Propulsion 10 | . 4 6 Utility 6 | . 3 3 Weapon 5 | . 2 3 Tool/Special 2 | . 1 1 Average Slot Usage (%) 98 | . 98 98 Engine 13 | . 14 13 Treads 14 | . 14 15 Wheel 13 | . 13 12 Device 3 | . 2 8 Storage 14 | . 14 14 Protection 8 | . 10 5 Energy Gun 13 | . 14 9 Energy Cannon 1 | . 1 . Ballistic Gun 7 | . 7 8 Ballistic Cannon 3 | . 2 8 Special Weapon 2 | . 2 1 Peak Build Rating 20 | 6 12 20 Average Rating 10 | 3 9 12 On Entrance 6 | . 6 12 Naked Turns . | . . . Heaviest Build 94 | 14 94 94 Greatest Support 40 | 40 40 16 Greatest Overweight (x) 5 | . 5 5 Average Overweight (x) 3 | . 3 5 Largest Inventory Capacity 25 | 8 25 25 Average Capacity 22 | 6 22 25 Most Carried 25 | 7 25 25 Average Carried 20 | 4 20 24 Final Capacity 25 | 8 25 25 Final Carried 24 | 6 24 24 Class Distribution -------------------- 100% | Mutant Dominant Class ---------------- Mutant | -10/Materials Mutant | -10/Subcaves Resources | -11 -10 -10 ----------- Run | Yrd Mat Sub Matter Collected 1371 | 216 796 359 Remotely 186 | . 186 . Salvage Created 917 | . 660 257 Parts 70 | . 50 20 Haulers Intercepted 1 | . 1 . Recyclers Shooed 1 | . 1 . Parts Field Recycled . | . . . Retrieved Matter . | . . . Parts Self-Destructed 15 | . . 15 Prevented . | . . . Kills | -11 -10 -10 ------- Run | Yrd Mat Sub Combat Hostiles Destroyed 20 | . 13 7 Guns 15 | . 9 6 Cannons 3 | . 2 1 AOE 2 | . 2 . Classes Destroyed 9 | . 8 1 Worker 2 | . 2 . Builder 1 | . 1 . Hauler 1 | . 1 . Recycler 2 | . 2 . Operator 1 | . 1 . Watcher 3 | . 3 . Swarmer 9 | . 7 2 Grunt 6 | . 6 . Subdweller 5 | . . 5 Best Kill Streak 6 | . 6 4 Combat Bots Only 6 | . 6 4 Max Kills in Single Turn 2 | . 2 1 Gunslinging . | . . . Exploded 2 | . 2 . Melee . | . . . Uniques/NPCs Destroyed . | . . . Combat | -11 -10 -10 -------- Run | Yrd Mat Sub Hostile Shots Fired 110 | . 37 73 Missed 37 | . 11 26 Hits 73 | . 26 47 Projectile 73 | . 26 47 AOE 4 | . . 4 Critical Strikes 3 | . 1 2 Damage Taken 1541 | . 333 1208 Core 253 | . 63 190 Absorbed by Shields . | . . . Regen/Repaired (Parts) 71 | . 71 . Core Remaining (%) 100 | 100 . . Volleys Fired 106 | . 67 39 Largest 2 | . 2 2 Hottest 100 | . 100 100 Shots Fired 178 | . 112 66 Gun 126 | . 86 40 Cannon 33 | . 14 19 Launcher 2 | . . 2 Special 17 | . 12 5 Kinetic 72 | . 35 37 Thermal 44 | . 39 5 Explosive . | . . . Electromagnetic 62 | . 38 24 Robot Hit Streak 19 | . 9 19 Robot Miss Streak 3 | . 3 3 Penetration Max . | . . . Secondary Targets 3 | . . 3 Max Gunslinging Chain 1 | . . 1 Shots Hit Robots 93 | . 46 47 Core Hits 49 | 2 30 17 Critical Kills . | . . . Critical Parts Destroyed . | . . . Critical Strikes 2 | . . 2 Destroy 2 | . . 2 Melee Attacks . | . . . Impact . | . . . Slashing . | . . . Piercing . | . . . Sneak Attacks . | . . . Combat Hostiles . | . . . Follow-up Attacks . | . . . Damage Inflicted 1806 | 3 919 884 Guns 1016 | . 530 486 Cannons 365 | . 158 207 Explosions 422 | . 231 191 Melee . | . . . Ramming 3 | 3 . . Kinetic 734 | . 158 576 Thermal 274 | . 274 . Explosive . | . . . Electromagnetic 795 | . 487 308 Impact . | . . . Slashing . | . . . Piercing . | . . . Highest Corruption . | . . . Average Corruption . | . . . Corruption Purged . | . . . Corruption Blocked . | . . . Overload Shots . | . . . Overflow Damage 9 | . 9 . Projectiles . | . . . Explosions 9 | . 9 . Melee . | . . . Knockbacks 3 | . 1 2 Impact . | . . . Kinetic 3 | . 1 2 Secondary . | . . . Self-Inflicted Damage 70 | . 70 . Shots 2 | . 2 . Rammed 3 | 3 . . Targets Rammed 3 | 3 . . Kicked . | . . . Crushed . | . . . Highest Temperature 156 | . 156 8 Average Temperature 47 | . 48 3 Received Heat Transfer 270 | . 72 198 Siege Activations . | . . . Martial Activations . | . . . Shielding Activations . | . . . Robots Disrupted . | . . . Combat Hostiles . | . . . Robots Corrupted . | . . . Combat Hostiles . | . . . Parts Fried 2 | . 2 . Impact Corruptions . | . . . Robots Melted . | . . . Combat Hostiles . | . . . Parts Melted . | . . . Heat Transferred 607 | . 607 . Parts Sabotaged . | . . . Parts Stolen . | . . . Parts Stripped . | . . . Power Chain Reactions 2 | . 2 . Alert | -11 -10 -10 ------- Run | Yrd Mat Sub Maximum Alert Level . | . . . Low Security (%) 100 | 100 100 . Level 1 . | . . . Level 2 . | . . . Level 3 . | . . . Level 4 . | . . . Level 5 . | . . . High Security . | . . . Max Security . | . . . Peak Influence 135 | . 135 . Initial . | . . . Average 44 | . 46 . Influence Increases 527 | . 487 40 Destroy 0b10 Robot/C 300 | . 260 40 Destroy 0b10 Robot/NC 50 | . 50 . Destroy Leader 48 | . 48 . Successful Hack 16 | . 16 . Disable Machine 75 | . 75 . Destroy Structure 8 | . 8 . Lose Combat Pursuer 30 | . 30 . Influence Decreases 527 | . 455 72 Entered New Map 16 | . . 16 Time Decay 501 | . 445 56 Lost Part 10 | . 10 . Squads Dispatched 1 | . 1 . Investigation . | . . . Extermination . | . . . Reinforcement 1 | . 1 . Assault . | . . . Garrison . | . . . Intercept . | . . . Searches Triggered . | . . . Construction Impeded . | . . . Haulers Reinforced . | . . . Active Scanning Responses . | . . . Cargo Convoy Interrupts . | . . . Stealth | -11 -10 -10 --------- Run | Yrd Mat Sub Distress Signals 1 | . 1 . Communications Jammed . | . . . Distress Signals . | . . . Times Spotted 36 | . 18 18 Peak Tracking Total 6 | . 3 6 Tactical Retreats 1 | . 1 . Traps | -11 -10 -10 ------- Run | Yrd Mat Sub Traps Triggered . | . . . Indirectly . | . . . Trap Hack Attempts . | . . . Triggered . | . . . Disarmed . | . . . Reprogrammed . | . . . Reused . | . . . Traps Extracted . | . . . Installed . | . . . Triggered . | . . . Most Traps Carried 2 | . . 2 Machines | -11 -10 -10 ---------- Run | Yrd Mat Sub Machines Disabled 8 | . 5 3 Max in Single Turn 2 | . 2 1 Machines Repaired . | . . . Machines Dismantled . | . . . Machines Sabotaged . | . . . Overloaded Fab Kills . | . . . Hacking | -11 -10 -10 --------- Run | Yrd Mat Sub Machines Accessed 8 | . 7 1 Terminals 6 | . 6 . Fabricators . | . . . Repair Stations 1 | . 1 . Recycling Units . | . . . Scanalyzers . | . . . Garrison Access . | . . . Total Hacks 30 | . 21 9 Successful 22 | . 13 9 Failed 7 | . 7 . Catastrophic . | . . . Database Lockouts 1 | . 1 . Manual 18 | . 18 . Terminals 19 | . 19 . Fabricators . | . . . Repair Stations 2 | . 2 . Recycling Units . | . . . Scanalyzers . | . . . Garrison Access . | . . . Terminal Hacks 11 | . 2 9 Record 8 | . . 8 Robot Analysis 1 | . 1 . Locate Traps 1 | . 1 . Proto ID Catalog 1 | . . 1 Fabricator Hacks . | . . . Repair Station Hacks 2 | . 2 . Scan Component 1 | . 1 . Repair 1 | . 1 . Recycling Unit Hacks . | . . . Scanalyzer . | . . . Garrison Access Hacks . | . . . Unauthorized Hacks 9 | . 9 . Terminals 9 | . 9 . Assimilate 1 | . 1 . Botnet 3 | . 3 . Skim 5 | . 5 . Fabricators . | . . . Repair Stations . | . . . Recycling Units . | . . . Scanalyzers . | . . . Garrison Access . | . . . Data Cores Recovered . | . . . Used . | . . . Hacking Detections 6 | . 6 . Full Trace Events . | . . . Feedback Events . | . . . Feedback Blocked . | . . . Robot Schematics Acquired . | . . . Robots Built . | . . . Authchips . | . . . Time . | . . . Total Robot Build Rating . | . . . Part Schematics Acquired . | . . . Parts Built . | . . . Authchips . | . . . Time . | . . . Total Part Build Rating . | . . . Parts Repaired 1 | . 1 . Time 26 | . 26 . Parts Recycled . | . . . Recycled Matter . | . . . Retrieved Matter . | . . . Retrieved Components . | . . . Parts Scanalyzed . | . . . Part Schematics Acquired . | . . . Parts Damaged . | . . . Bothacking | -11 -10 -10 ------------ Run | Yrd Mat Sub Used RIF Installer . | . . . Robots Hacked . | . . . Non-combat . | . . . Combat . | . . . Robot Hacks Applied . | . . . Relay Couplers Released . | . . . Fabnet Peak Effective % . | . . . Robots Rewired . | . . . Allies Hacked . | . . . Hacks Repelled . | . . . Allies | -11 -10 -10 -------- Run | Yrd Mat Sub Total Allies . | . . . Largest Group . | . . . Highest-Rated Group . | . . . Highest-Rated Ally . | . . . Total Orders . | . . . Ally Attacks . | . . . Total Damage . | . . . Kills . | . . . Allies Corrupted . | . . . Allies Melted . | . . . Intel | -11 -10 -10 ------- Run | Yrd Mat Sub Active Infowar (turns) 290 | . . 290 Sensors 290 | . . 290 Robot Analysis Total 1 | . 1 . Derelict Logs Recovered . | . . . Drone Launches . | . . . Drone Recoveries . | . . . Exploration | -11 -10 -10 ------------- Run | Yrd Mat Sub Turns Passed 2295 | 84 1675 536 Spaces Moved 1116 | 42 856 218 Core 2 | 2 . . Treads 41 | 40 1 . Legs . | . . . Wheels 1073 | . 855 218 Hover . | . . . Flight . | . . . Fastest Speed 50 | 50 95 175 Average Speed 160 | 154 156 175 Slowest Speed 320 | 160 320 175 Overloaded Moves . | . . . Propulsion Burnouts . | . . . Robots Hopped . | . . . Potential Cave-ins . | . . . Cave-ins Triggered . | . . . Exploration Rate (%) 38 | 4 93 17 Regions Visited 2 Branch Regions 1 Pre-discovered Areas 1 | . 1 . Known Exits Taken 1 | . 1 . Unknown Exits Taken 1 | 1 . . Scrap Searched 2 | . . 2 Spaces Dug 2 | . 2 . Terrain Destroyed 34 | . 9 25 Melee . | . . . Projectile 5 | . 5 . AOE 29 | . 4 25 Terrain Rammed . | . . . Walls Destroyed . | . . . Machines Disabled . | . . . Actions | -11 -10 -10 --------- Run | Yrd Mat Sub Total 1415 | 57 1060 298 Wait 47 | . 45 2 Move 1114 | 41 855 218 Hop . | . . . Pick Up 58 | 7 41 10 Fast Attach 7 | 5 2 . Attach 9 | 1 2 6 Detach 1 | . . 1 Swap 41 | . 24 17 Drop 29 | . 24 5 Fire 106 | . 67 39 Melee . | . . . Ram . | . . . Kick . | . . . Crush 3 | 3 . . Escape Stasis . | . . . Rewire . | . . . Trap . | . . . Miscellaneous . | . . . Route ------- -11/Scrapyard -10/Materials (discovered 6 exits: *Mat x3 / *Min x2 / *Sub) -10/Subcaves (discovered 1 exit: Mat) History --------- Turn | Location | Event 13 | -11/Scrapyard | Discovered new exit (range 14) 85 | -11/Scrapyard | Entered Materials 295 | -10/Materials | Discovered new exit (range 15) 310 | -10/Materials | Build established: Mutant 581 | -10/Materials | Discovered new exit (range 8) 708 | -10/Materials | Discovered new exit (range 16) 808 | -10/Materials | Central database locked down 910 | -10/Materials | Discovered new exit (range 9) 1140 | -10/Materials | Identified exit to Materials 1175 | -10/Materials | Identified exit to Subcaves 1175 | -10/Materials | Identified exit to Mines 1210 | -10/Materials | Learned location of Subcaves (-10) 1215 | -10/Materials | Learned 4 Subcaves zone layouts 1633 | -10/Materials | Repaired Lgt. Armor Plating 1760 | -10/Materials | Entered Subcaves 1761 | -10/Subcaves | Approached by a straggling Scientist 1761 | -10/Subcaves | Identified exit to Materials 1919 | -10/Subcaves | Ambushed by swarm of Subdwellers 1927 | -10/Subcaves | Ambushed by Subdwellers from Twisted Machinery 1954 | -10/Subcaves | Core integrity fell below 50% 1966 | -10/Subcaves | Core integrity fell below 20% 1977 | -10/Subcaves | Lost 3 allies 1992 | -10/Subcaves | Lost 4 parts (1n1u2w) 2104 | -10/Subcaves | Visited 4L-MR0's lab 2142 | -10/Subcaves | Found Meta Core 2226 | -10/Subcaves | A swath of the cavern ceiling suddenly collapsed 2296 | -10/Subcaves | Destroyed by 4H-TH7(R) with Subdweller Beam Cannon Last Messages --------------- 02142_ Dropped Autogun. 02142_ Acquired Meta Core. 02145_ 4L-MR0 mumbles: "I'm surprised some of them are even willing to come in here given their fear of my usual visitors." 02168_ Acquired 56 matter. 02226_ AB-06B(g) crushed by falling debris. A swath of the cavern ceiling suddenly collapses. 02260_ EC-O6F(R) angrily emerges from the Twisted Machinery. 02268_ AB-06B(g) destroyed. 02272_ EC-O6F(R) destroyed. 02280_ HV Slug penetrates Twisted Machinery. 02280_ Lgt. Treads destroyed. 02280_ Phase Shifter destroyed. 02283_ OB-ZUH(R) suffers critical hit (Destroy). 02284_ Ion Engine destroyed. 02286_ AE-QXN(R) suffers critical hit (Destroy). 02290_ Bore Cannon destroyed. Map ----- +----------------------------------------------------+ | | | | | | | | | | | | | ?????????????????????????????????????????????????? | | ?????????????????????????????????????????????????? | | ?????????????????????????????????????????????????? | | ?????????????????????????????????????????????????? | | ?????????????????????????????????????????????????? | | ?????????????????????????????????????????????????? | | ?????????????????????????????????????????????????? | | ?????????????????????????????????????????????????? | | ?????????????????????????????????????????????????? | | ?????????????????????????????????????????????????? | | ?????????????????????????????????????????????????? | | ??????????????????????????####???????????????????? | | ??????????????????????????$# ????????????????????? | | ??????????????????????????& ????????????????????? | | ?#######?????????????##### &###?#######??????????? | | ?# ##?###??????### ; $ # ;;; ; ;;?????????? | | ??# ## ########; "????????? | | ??# ####"; ; R ????????? | | #?# #?#"""#### ; ????????? | | ##?# #??##"""#?# @ R ?????###? | | #?# #####""#"#?# RR ????? ## | | #### ## """####?# ;;; ; ????? # | | "" "" "##?#; ;##; ###?????? | | ##"##"####?# ##????##???????? | | ## ###" #"" #?### ###??????????????? # | | ### ### """ #?? ####????????????????????? | | #?## #?# "## ???????????????????????? | | #?#### # ##???????????????????????? | | # ????## ## ##????????????????????????? | | # #?????## ## ##### ##?????????????????????????? | | ####??????##### ???# #??????????????????????????? | | ???????????????" ??? ??????????????????????????? | | #?????????????? ??? ?? ?????????????????????????? | | #??????????????" ?????? ????????????????????????? | | #?????????????? ?????? ????????????????????????? | | ???????????????? ???????????????????????????????? | | ????????????????# ???????????????????????????????? | | ?????????????????????????????????????????????????? | | ?????????????????????????????????????????????????? | | ?????????????????????????????????????????????????? | | ?????????????????????????????????????????????????? | | ?????????????????????????????????????????????????? | | ?????????????????????????????????????????????????? | | ?????????????????????????????????????????????????? | +----------------------------------------------------+ Best States ------------- Heat Dissipation 25 Energy Generation 10 Energy Capacity 250 Matter Stores 300 Matter Capacity 300 Sight Range 16 Robot Scan Range 14 Terrain Scan Density 10 Armor Coverage 150 Phase Shifting 5 Evasion (%) 45 Recoil Reduction 2 Item Schematics ----------------- None Robot Schematics ------------------ None Fabricated ------------ Nothing Repaired ---------- Lgt. Armor Plating | 21% | -10/Materials Alien Tech Used ----------------- None Achievements -------------- None Challenges ------------ None Game ------ Seed CompactAutogunRouter Manual? 0 Play Time 00:23:31 Cumulative 42.6 hours Start 2025.09.01 @ 22:37:11 End 2025.09.04 @ 08:39:24 Sessions 4 Manual Loads 0 Difficulty Rogue Special Mode None Game No. 4 Rogue 1 Adventurer 3 Explorer 0 Win Type - Total 2 Types 1/1/0/0/0/0/0/0/0/0 Lore% 23 Gallery% 35 Achievement% 45 Wizard Run 0 Options --------- Layout 0 ASCII 0 Keyboard 0 Movement Mouse Keybinds 0 Fullscreen 2 Font 20/SmallcapsGlow Map View 25x25 Zoom Use 73% Tactical HUD 1 Map Filters NONE Filters NONE Steam 1 RUN: e7df1046-f025-4764-8348-280097ccc481